fUSD/lending_fUSD_20240330
["ID","MTS","AMOUNT","RATE_DAILY","PERIOD"]
[321047866,1711821044041,-500.0,0.00041095,4]
[321047867,1711821044051,-500.0,0.00041095,4]
[321047868,1711821044061,-500.0,0.00041095,4]
[321047869,1711821044071,-500.0,0.00041095,4]
[321047870,1711821044081,-500.0,0.00041095,4]
[321047871,1711821044090,-442.45890378,0.00041095,4]
[321047872,1711821044100,-500.0,0.00041095,4]
[321047873,1711821044110,-564.58746182,0.00041095,4]
[321047874,1711821044120,-500.0,0.00041095,4]
[321047875,1711821044130,-500.0,0.00041095,4]
[321047876,1711821044139,-500.0,0.00041095,4]
[321047877,1711821044149,-500.0,0.00041095,4]
[321047878,1711821044159,-500.0,0.00041095,4]
[321047879,1711821044169,-500.0,0.00041095,4]
[321047880,1711821044178,-500.0,0.00041095,4]
[321047881,1711821044187,-540.40111999,0.00041095,4]
[321047882,1711821044197,-649.81866949,0.00041095,4]
[321047883,1711821044208,-500.0,0.00041095,4]
[321047884,1711821044218,-600.25062581,0.00041095,4]
[321047885,1711821044228,-500.0,0.00041095,4]
[321047886,1711821044237,-545.637852,0.00041095,4]
[321047887,1711821044247,-500.0,0.00041095,4]
[321047888,1711821044257,-500.0,0.00041095,4]
[321047889,1711821044267,-500.0,0.00041095,4]
[321047890,1711821044277,-500.0,0.00041095,4]
[321047891,1711821044287,-500.0,0.00041095,4]
[321047892,1711821044297,-500.0,0.00041095,4]
[321047893,1711821044307,-500.0,0.00041095,4]
[321047894,1711821044317,-500.0,0.00041095,4]
[321047895,1711821044328,-500.0,0.00041095,4]
[321047896,1711821044338,-508.5566085,0.00041095,4]
[321047897,1711821044347,-500.0,0.00041095,4]
[321047898,1711821044357,-500.0,0.00041095,4]
[321047899,1711821044367,-500.0,0.00041095,4]
[321047900,1711821044377,-1000.0,0.00041095,2]
[321047901,1711821044390,-500.0,0.00041095,4]
[321047902,1711821044399,-500.0,0.00041095,4]
[321047903,1711821044409,-500.0,0.00041095,4]
[321047904,1711821044419,-500.0,0.00041095,4]
[321047905,1711821044429,-500.0,0.00041095,4]
[321047906,1711821044439,-500.0,0.00041095,4]
[321047907,1711821044449,-500.0,0.00041095,4]
[321047908,1711821044459,-500.0,0.00041095,4]
[321047909,1711821044471,-500.0,0.00041095,4]
[321047910,1711821044481,-500.0,0.00041095,4]
[321047911,1711821044490,-500.0,0.00041095,4]
[321047912,1711821044500,-500.0,0.00041095,4]
[321047913,1711821044510,-316.87662232,0.00041095,4]
[321047914,1711821044530,-500.0,0.00041095,4]
[321047915,1711821044542,-500.0,0.00041095,4]
[321047916,1711821044552,-500.0,0.00041095,4]
[321047917,1711821044562,-500.0,0.00041095,4]
[321047918,1711821044574,-500.0,0.00041095,4]
[321047919,1711821044584,-505.34675271,0.00041095,2]
[321047920,1711821044594,-500.0,0.00041095,4]
[321047921,1711821044604,-500.0,0.00041095,4]
[321047922,1711821044614,-500.0,0.00041095,4]
[321047923,1711821044624,-540.7767394,0.00041095,4]
[321047924,1711821044634,-553.06,0.00041095,4]
[321047925,1711821044644,-500.0,0.00041095,4]
[321047926,1711821044654,-500.0,0.00041095,4]
[321047927,1711821044665,-546.3604111,0.00041095,4]
[321047928,1711821044675,-215.13256566,0.00041095,4]
[321047929,1711821044685,-500.0,0.00041095,4]
[321047930,1711821044695,-925.88,0.00041095,4]
[321047931,1711821044705,-500.0,0.00041095,4]
[321047932,1711821044715,-500.0,0.00041095,2]
[321047933,1711821044726,-500.0,0.00041095,4]
[321047934,1711821044736,-500.0,0.00041095,4]
[321047935,1711821044746,-500.0,0.00041095,4]
[321047936,1711821044756,-500.0,0.00041095,4]
[321047937,1711821044766,-500.0,0.00041095,4]
[321047938,1711821044776,-500.0,0.00041095,4]
[321047939,1711821044787,-500.0,0.00041095,4]
[321047940,1711821044800,-1000.0,0.00041095,4]
[321047941,1711821044810,-500.0,0.00041095,4]
[321047942,1711821044820,-500.0,0.00041095,4]
[321047943,1711821044830,-500.0,0.00041095,4]
[321047944,1711821044840,-500.0,0.00041095,4]
[321047945,1711821044850,-500.0,0.00041095,4]
[321047946,1711821044861,-500.0,0.00041095,4]
[321047947,1711821044871,-500.0,0.00041095,4]
[321047948,1711821044881,-500.0,0.00041095,4]
[321047949,1711821044892,-500.0,0.00041095,4]
[321047950,1711821044901,-500.0,0.00041095,4]
[321047951,1711821044912,-500.0,0.00041095,4]
[321047952,1711821044921,-500.0,0.00041095,4]
[321047953,1711821044932,-500.0,0.00041095,4]
[321047954,1711821044942,-500.0,0.00041095,4]
[321047955,1711821044952,-500.0,0.00041095,4]
[321047956,1711821044962,-500.0,0.00041095,4]
[321047957,1711821044972,-500.0,0.00041095,4]
[321047958,1711821044982,-500.0,0.00041095,4]
[321047959,1711821044992,-500.0,0.00041095,4]
[321047960,1711821045002,-500.0,0.00041095,4]
[321047961,1711821045012,-500.0,0.00041095,4]
[321047962,1711821045022,-500.0,0.00041095,4]
[321047963,1711821045031,-282.01309703,0.00041095,4]
[321047964,1711821045041,-500.0,0.00041095,4]
[321047965,1711821045051,-500.0,0.00041095,4]
[321047966,1711821045061,-500.0,0.00041095,4]
[321047967,1711821045072,-462.05225073,0.00041095,4]
[321047968,1711821045083,-500.0,0.00041095,4]
[321047969,1711821045093,-500.0,0.00041095,15]
[321047970,1711821045103,-500.0,0.00041095,4]
[321047971,1711821045113,-500.0,0.00041095,4]
[321047972,1711821045123,-500.0,0.00041095,4]
[321047973,1711821045133,-500.0,0.00041095,4]
[321047974,1711821045143,-500.0,0.00041095,4]
[321047975,1711821045153,-500.0,0.00041095,4]
[321047976,1711821045163,-500.0,0.00041095,4]
[321047977,1711821045173,-510.21369141,0.00041095,4]
[321047978,1711821045183,-500.0,0.00041095,4]
[321047979,1711821045193,-500.0,0.00041095,4]
[321047980,1711821045203,-500.0,0.00041095,4]
[321047981,1711821045213,-695.03,0.00041095,4]
[321047982,1711821045223,-500.0,0.00041095,4]
[321047983,1711821045237,-500.0,0.00041095,4]
[321047984,1711821045248,-500.0,0.00041095,4]
[321047985,1711821045258,-500.0,0.00041095,4]
[321047986,1711821045268,-500.0,0.00041095,4]
[321047987,1711821045279,-500.0,0.00041095,4]
[321047988,1711821045289,-500.0,0.00041095,4]
[321047989,1711821045299,-500.0,0.00041095,4]
[321047990,1711821045309,-500.0,0.00041095,4]
[321047991,1711821045320,-500.0,0.00041095,4]
[321047992,1711821045330,-500.0,0.00041095,4]
[321047993,1711821045340,-500.0,0.00041095,4]
[321047994,1711821045353,-500.0,0.00041095,4]
[321047995,1711821045364,-500.0,0.00041095,4]
[321047996,1711821045374,-500.0,0.00041095,4]
[321047997,1711821045389,-500.0,0.00041095,4]
[321047998,1711821045399,-500.0,0.00041095,4]
[321047999,1711821045409,-638.76,0.00041095,4]
[321048000,1711821045418,-500.0,0.00041095,4]
[321048001,1711821045430,-500.0,0.00041095,4]
[321048002,1711821045439,-45.14695277,0.00041095,4]
[321048019,1711821046571,-454.85304723,0.00041095,4]
[321048020,1711821046581,-237.12897689,0.00041095,4]
[321048021,1711821054322,401.143511,0.00029475,2]
[321048022,1711821240023,4489.0,0.0003,2]
[321048067,1711822232257,-336.55787413,0.00032895,4]
[321048068,1711822232269,-748.08894836,0.00032895,4]
[321048069,1711822232279,-161.4766921,0.00032896,4]
[321048070,1711822232322,-13.78783757,0.00032896,4]
[321048071,1711822232331,-300.0,0.00032899,2]
[321048072,1711822232342,-250.0,0.00033,3]
[321048073,1711822232351,-300.0,0.00035,3]
[321048074,1711822232361,-350.0,0.00037,3]
[321048075,1711822232370,-622.85,0.00037573,2]
[321048076,1711822232380,-156.29,0.0003852,2]
[321048077,1711822232389,-652.55,0.00038727,2]
[321048078,1711822232398,-364.25,0.00038828,2]
[321048079,1711822232408,-250.0,0.00038905,2]
[321048080,1711822232417,-209.49331235,0.00038943,2]
[321048081,1711822232436,-5.66668765,0.00038943,2]
[321048082,1711822232446,-400.0,0.00039,3]
[321048083,1711822232456,-191.42,0.0003902,2]
[321048084,1711822232465,-39.17776698,0.00039053,15]
[321048085,1711822232493,-140.10223302,0.00039053,15]
[321048086,1711822232502,-261.12,0.000392,2]
[321048087,1711822232511,-5061.86037127,0.000392,2]
[321048088,1711822232520,-165.77,0.0003929,2]
[321048089,1711822232529,-76246.16904571,0.00039299,4]
[321048102,1711822238240,-3060.61591101,0.00039299,4]
[321048103,1711822238504,-838.51745511,0.00039299,4]
[321048104,1711822238528,-288.41386898,0.00039299,4]
[321048105,1711822238541,-1441.30536919,0.00039299,4]
[321048106,1711822238550,-68647.87861583,0.000393,2]
[321048236,1711822240479,-1380.1812855,0.000393,2]
[321048239,1711822240497,-1024.1975105,0.000393,2]
[321048392,1711822243333,-348.09908793,0.000393,2]
[321048393,1711822243388,-2922.39181056,0.000393,2]
[321048394,1711822243471,-579.17537684,0.000393,2]
[321048395,1711822243577,-6585.35071745,0.000393,2]
[321048396,1711822243614,-2972.07298965,0.000393,2]
[321048411,1711822378975,401.143511,0.00029475,2]
[321048433,1711823432465,-437.70103512,0.00032999,4]
[321048434,1711823432475,-250.0,0.00033,3]
[321048435,1711823432485,-158.51479588,0.00034999,4]
[321048436,1711823432736,-3330.60567035,0.00034999,4]
[321048437,1711823432746,-300.0,0.00035,3]
[321048438,1711823432755,-166.0767732,0.00036861,2]
[321048439,1711823432765,-121.94345112,0.00036961,2]
[321048440,1711823432777,-469.75654888,0.00036961,2]
[321048441,1711823432787,-100.9159389,0.00037,3]
[321048455,1711823438416,-249.0840611,0.00037,3]
[321048456,1711823438426,-365.351025,0.00037233,2]
[321048457,1711823438437,-156.29,0.0003829,2]
[321048458,1711823438447,-1000.0,0.0003846,2]
[321048459,1711823438457,-303.54,0.00038483,2]
[321048460,1711823438468,-179.28,0.00038712,15]
[321048461,1711823438478,-190.42,0.00038781,2]
[321048462,1711823438489,-400.0,0.00039,3]
[321048463,1711823438499,-35074.67002536,0.000391,2]
[321048478,1711823440490,-2218.60421594,0.000391,2]
[321048479,1711823440503,-615.85712657,0.000391,2]
[321048480,1711823440701,-3525.14559177,0.000391,2]
[321048488,1711823443413,-2017.1051,0.000391,2]
[321048489,1711823443537,-5034.26194036,0.000391,2]
[321048490,1711823443547,-1408.76263355,0.000391,2]
[321048491,1711823443557,-678.24196898,0.000391,4]
[321048492,1711823443566,-836.34,0.00039108,2]
[321048493,1711823443575,-27984.16297663,0.000392,2]
[321048831,1711823446828,-1000.17791622,0.00039199,4]
[321048834,1711823446837,-16180.09179006,0.000392,2]
[321048839,1711823446865,-1309.99765462,0.000392,2]
[321048841,1711823446885,-621.83343533,0.000392,2]
[321049320,1711823452056,706.90688598,0.00029475,2]
[321049579,1711823454591,706.73937592,0.00029475,2]
[321049640,1711823456487,428.81471007,0.0003,4]
[321049641,1711823511346,1519.40082557,0.0003,4]
[321049642,1711823529331,825.96204739,0.0003,4]
[321049643,1711824095897,1000.0,0.00042044,30]
[321049644,1711824098845,1000.0,0.00042044,30]
[321049645,1711824100461,1000.0,0.00042044,30]
[321049650,1711824437332,176.2,0.00029937,2]
[321049671,1711824631586,-242.21518761,0.00030374,4]
[321049672,1711824631597,-437.70103512,0.00030375,4]
[321049673,1711824631607,-165.35220874,0.00030377,2]
[321049674,1711824631617,-2534.72852423,0.00030474,4]
[321049675,1711824631627,-291.0,0.00030477,2]
[321049676,1711824631637,-534.73939073,0.00030485,4]
[321049677,1711824631647,-147.67710508,0.00035278,4]
[321049678,1711824631660,-83.37544408,0.00035278,4]
[321049679,1711824631670,-562.11,0.00035623,2]
[321049680,1711824631680,-150.0,0.00037291,3]
[321049681,1711824631690,-1878.78750201,0.00037292,4]
[321049682,1711824631723,-517.9614323,0.00037292,4]
[321049683,1711824631735,-803.1102161,0.00037292,4]
[321049684,1711824631757,-536.17554,0.00037292,4]
[321049685,1711824631770,-10550.32808408,0.00037292,4]
[321049686,1711824631779,-4302.72776757,0.00037293,4]
[321049687,1711824631789,-337.26,0.00037293,2]
[321049688,1711824631799,-156.29,0.00037333,2]
[321049689,1711824631809,-250.0,0.00037431,112]
[321049690,1711824631819,-252.95,0.0003748,2]
[321049691,1711824631829,-563.05,0.00037748,2]
[321049692,1711824631840,-562.11,0.00037887,2]
[321049693,1711824631850,-1000.0,0.00037932,2]
[321049694,1711824631861,-179.28,0.00038027,15]
[321049695,1711824631872,-164.42,0.00038124,2]
[321049696,1711824631882,-164.42,0.00038314,2]
[321049697,1711824631893,-696.95,0.00038436,2]
[321049698,1711824631905,-1000.0,0.00039,8]
[321049699,1711824631915,-1000.0,0.00039,8]
[321049700,1711824631926,-1018.0,0.00039,8]
[321049701,1711824631936,-195.87310251,0.00039002,4]
[321049702,1711824631947,-537.71,0.00039032,2]
[321049703,1711824631957,-150.0,0.00039095,2]
[321049704,1711824631967,-6693.77329309,0.00039098,2]
[321049705,1711824631977,-242866.0091,0.00039098,2]
[321049706,1711824631989,-712.43824804,0.00039198,4]
[321049707,1711824631998,-949.24518339,0.00039198,4]
[321049709,1711824632008,-2055.88325931,0.00039198,4]
[321049711,1711824632018,-164.90960857,0.00039198,4]
[321049713,1711824632028,-155.0,0.00039198,4]
[321049715,1711824632037,-7193.28299669,0.00039198,4]
[321049717,1711824632047,-155.0,0.00039198,4]
[321049719,1711824632057,-198.59407589,0.00039198,4]
[321049721,1711824632067,-679.45509569,0.00039198,4]
[321049723,1711824632077,-155.0,0.00039198,4]
[321049726,1711824632087,-193.54858059,0.00039198,4]
[321049730,1711824632097,-294.6291619,0.00039198,4]
[321049733,1711824632108,-428.44781886,0.00039198,4]
[321049735,1711824632118,-150.0,0.000392,6]
[321049737,1711824632127,-227.67576,0.000392,2]
[321049739,1711824632137,-690.19265903,0.00039298,4]
[321049741,1711824632147,-373.17557864,0.00039298,4]
[321049743,1711824632156,-155.0,0.00039298,4]
[321049745,1711824632165,-160.47350713,0.00039298,4]
[321049748,1711824632175,-200.92371637,0.00039298,4]
[321049751,1711824632185,-155.0,0.00039298,4]
[321049754,1711824632195,-3244.31381251,0.00039298,4]
[321049757,1711824632205,-195.31186243,0.00039298,4]
[321049760,1711824632215,-9297.0582831,0.00039476,2]
[321049763,1711824632225,-6693.773293,0.00039674,2]
[321049766,1711824632234,-150.0,0.000397,6]
[321049769,1711824632244,-2381.07974764,0.000398,13]
[321049772,1711824632254,-153.22347244,0.000398,5]
[321049775,1711824632264,-252.8325517,0.000398,2]
[321049777,1711824632274,-700.0,0.000398,14]
[321049779,1711824632283,-518.33,0.00039852,2]
[321049781,1711824632293,-414.95,0.00039852,2]
[321049783,1711824632302,-150.0,0.00039852,2]
[321049785,1711824632312,-360.87,0.00039852,2]
[321049788,1711824632323,-150.0,0.00039852,2]
[321049790,1711824632333,-518.33,0.00039852,2]
[321049792,1711824632343,-392.03,0.00039852,2]
[321049794,1711824632352,-172.88514607,0.0003989,2]
[321049796,1711824632362,-167.0,0.0003989,2]
[321049798,1711824632372,-240.94262919,0.00039899,4]
[321049800,1711824632381,-155.0,0.000399,5]
[321049802,1711824632391,-472351.68340457,0.000399,2]
[321049811,1711824632476,-734.81161091,0.000399,2]
[321049819,1711824632538,-8450.16331604,0.000399,2]
[321049829,1711824637766,-1900.49115,0.000399,2]
[321049830,1711824637824,-2870.53910457,0.000399,2]
[321049892,1711824639649,-8116.16946143,0.000399,2]
[321049895,1711824639662,-11006.0061312,0.000399,2]
[321049960,1711824642793,-428.44781886,0.000399,2]
[321049961,1711824642803,-14701.40503742,0.000399,2]
[321049962,1711824642815,-789.82911441,0.000399,2]
[321049979,1711824757673,1018.0,0.00042044,30]
[321049984,1711824841909,4489.0,0.0003,2]
[321050009,1711825556441,150.0,0.00025671,2]
[321050327,1711825831798,-1950.0,0.00031252,2]
[321050328,1711825831892,-5151.617464,0.00031252,2]
[321050329,1711825831902,-151.81814753,0.00031409,2]
[321050330,1711825831912,-1114.42497351,0.00031409,2]
[321050331,1711825831922,-345.0,0.00031509,2]
[321050332,1711825831931,-437.70103512,0.00031509,4]
[321050333,1711825831941,-2534.72852423,0.0003151,4]
[321050334,1711825831950,-2000.0,0.00031511,2]
[321050335,1711825831959,-150.0,0.00031932,3]
[321050336,1711825831969,-8143.97835914,0.00031933,4]
[321050337,1711825831979,-1054.69338501,0.000324,2]
[321050338,1711825831988,-999.99,0.000324,2]
[321050339,1711825831998,-250.0,0.00033,3]
[321050340,1711825832008,-300.0,0.00035,3]
[321050341,1711825832018,-166.86115363,0.00035133,2]
[321050342,1711825832028,-237.97,0.00035133,2]
[321050343,1711825832037,-566.88,0.00035359,2]
[321050344,1711825832048,-156.29,0.0003675,2]
[321050345,1711825832058,-350.0,0.00037,3]
[321050346,1711825832068,-467.0,0.00037144,2]
[321050347,1711825832077,-225.49,0.00037204,2]
[321050348,1711825832090,-2593.13,0.00037213,2]
[321050349,1711825832099,-23880.0,0.00037214,2]
[321050350,1711825832110,-580.79,0.00037223,2]
[321050351,1711825832120,-590.62,0.0003728,2]
[321050352,1711825832130,-613.43,0.00037345,2]
[321050353,1711825832139,-162.27,0.00037393,2]
[321050354,1711825832149,-641.5,0.00037397,2]
[321050355,1711825832159,-210.79,0.00037492,2]
[321050356,1711825832168,-488.00186304,0.00037504,4]
[321050357,1711825832177,-162.27,0.00037587,2]
[321050358,1711825832187,-566.88,0.00037623,2]
[321050359,1711825832197,-162.27,0.00037782,2]
[321050360,1711825832207,-639.87,0.00037802,2]
[321050361,1711825832216,-151.67,0.00037807,2]
[321050363,1711825832226,-151.67,0.00037824,2]
[321050365,1711825832236,-151.67,0.00037842,2]
[321050367,1711825832247,-151.67,0.00037859,2]
[321050369,1711825832256,-151.67,0.00037876,2]
[321050371,1711825832266,-151.67,0.00037893,2]
[321050373,1711825832276,-151.67,0.0003791,2]
[321050375,1711825832285,-151.67,0.00037928,2]
[321050376,1711825832296,-151.67,0.00037945,2]
[321050377,1711825832306,-151.67,0.00037962,2]
[321050378,1711825832317,-166.86115363,0.00037967,2]
[321050380,1711825832327,-162.27,0.00037977,2]
[321050382,1711825832339,-151.67,0.00037979,2]
[321050384,1711825832350,-151.67,0.00037996,2]
[321050385,1711825832359,-179.28,0.00038027,15]
[321050386,1711825832369,-1000.0,0.00038062,2]
[321050387,1711825832379,-162.27,0.00038172,2]
[321050388,1711825832389,-195.01,0.00038356,2]
[321050389,1711825832400,-162.27,0.00038367,2]
[321050390,1711825832410,-162.27,0.00038562,2]
[321050391,1711825832421,-164.82,0.00038674,2]
[321050392,1711825832432,-162.27,0.00038757,2]
[321050393,1711825832443,-162.27,0.00038951,2]
[321050394,1711825832455,-155.0,0.00038998,2]
[321050395,1711825832466,-34757.4675,0.00038998,2]
[321050396,1711825832475,-400.0,0.00039,3]
[321050397,1711825832487,-10899.04940408,0.00039,5]
[321050398,1711825832497,-162.27,0.00039146,2]
[321050399,1711825832507,-5687.0,0.00039164,2]
[321050400,1711825832519,-4777.0,0.00039164,2]
[321050401,1711825832529,-43018.0,0.00039164,2]
[321050402,1711825832540,-2452.0,0.00039164,2]
[321050403,1711825832551,-1048.0,0.00039164,2]
[321050404,1711825832561,-162.27,0.00039341,2]
[321050405,1711825832571,-189.7298,0.000395,2]
[321050406,1711825832581,-300.0,0.00039516,2]
[321050407,1711825832593,-155.74903654,0.00039699,4]
[321050408,1711825832603,-1702.19012186,0.000397,2]
[321050409,1711825832612,-193.44,0.00039726,2]
[321050410,1711825832623,-150.0,0.00039726,2]
[321050411,1711825832632,-150.0,0.00039726,2]
[321050412,1711825832642,-150.0,0.00039726,2]
[321050413,1711825832653,-150.0,0.00039726,2]
[321050414,1711825832664,-150.0,0.00039726,2]
[321050415,1711825832674,-150.0,0.00039726,2]
[321050416,1711825832684,-150.0,0.00039726,2]
[321050417,1711825832693,-783.56873988,0.00039798,4]
[321050418,1711825832704,-237.08020686,0.00039798,4]
[321050419,1711825832715,-375.21140682,0.00039799,4]
[321050420,1711825832725,-404.62607058,0.00039799,4]
[321050421,1711825832735,-25294.45165454,0.000398,2]
[321050422,1711825832748,-326.33051176,0.000398,2]
[321050423,1711825832773,-399.96108814,0.000398,2]
[321050424,1711825832790,-1395.94038768,0.000398,2]
[321050425,1711825832819,-2922.96517913,0.000398,2]
[321050426,1711825832831,-801.36554768,0.000398,2]
[321050439,1711825837809,-1086.38701074,0.000398,2]
[321050440,1711825837869,-358.19667811,0.000398,2]
[321050441,1711825837954,-1613.91517374,0.000398,2]
[321050442,1711825837986,-1085.41820824,0.000398,2]
[321050443,1711825837999,-688.5,0.000398,2]
[321050444,1711825838113,-104906.19231213,0.000398,2]
[321050445,1711825838125,-58416.80314811,0.000398,2]
[321050446,1711825838135,-495.04308945,0.000398,2]
[321050447,1711825838146,-1085.27762042,0.00039862,4]
[321050448,1711825838157,-566.88,0.00039887,2]
[321050449,1711825838167,-200.81192187,0.00039897,2]
[321050450,1711825838176,-551.92899067,0.00039898,4]
[321050451,1711825838186,-344.65018457,0.00039898,4]
[321050452,1711825838197,-260.52601127,0.00039898,4]
[321050453,1711825838206,-640.77374403,0.00039898,4]
[321050454,1711825838215,-683.38641092,0.00039898,4]
[321050456,1711825838224,-157.27631021,0.00039898,4]
[321050458,1711825838234,-210.51110396,0.00039899,4]
[321050460,1711825838243,-160.43339232,0.00039899,4]
[321050461,1711825838252,-289.91527408,0.00039899,4]
[321050463,1711825838261,-205.58287185,0.00039899,2]
[321050466,1711825838271,-674.21939325,0.00039899,2]
[321050468,1711825838280,-34279.46849354,0.000399,2]
[321050469,1711825838291,-1892.76553435,0.000399,2]
[321050472,1711825838303,-672.40743722,0.000399,2]
[321050635,1711825839915,-2456.01223016,0.000399,2]
[321050637,1711825839927,-1499.96842496,0.000399,2]
[321050741,1711825841007,-382.4155028,0.000399,2]
[321050831,1711825843448,-2322.22480518,0.000399,2]
[321050833,1711825843482,-628.78584199,0.000399,2]
[321050837,1711825843510,-337.10969663,0.00039899,2]
[321050839,1711825843520,-2631.3646249,0.000399,2]
[321050847,1711825845770,-1000.0,0.000399,2]
[321050856,1711825845994,-450.76152426,0.000399,2]
[321050857,1711825846106,-1912.9668,0.000399,2]
[321050927,1711825862391,3469.87363088,0.00025671,2]
[321050928,1711825872622,174.98483013,0.00027,2]
[321050929,1711825882966,322.07704381,0.00025671,2]
[321050930,1711825891380,455.86550322,0.00025671,2]
[321050931,1711826462430,2139.9499032,0.00042038,30]
[321050989,1711827032265,-437.70103512,0.00032995,4]
[321050990,1711827032275,-281.99004832,0.00032996,4]
[321050991,1711827032325,-2252.73847591,0.00032996,4]
[321050992,1711827032335,-250.0,0.00033,3]
[321050993,1711827032344,-300.0,0.00035,3]
[321050994,1711827032353,-893.5695,0.000369,2]
[321050995,1711827032364,-350.0,0.00037,3]
[321050996,1711827032372,-168.12455338,0.00037067,2]
[321050997,1711827032382,-168.12455336,0.00038376,2]
[321050998,1711827032391,-225.48,0.00038473,2]
[321050999,1711827032400,-156.29,0.00038529,2]
[321051000,1711827032409,-262.02,0.00038529,2]
[321051001,1711827032418,-611.4,0.00038529,2]
[321051002,1711827032427,-483.99,0.0003857,2]
[321051003,1711827032436,-763.7,0.00038703,2]
[321051004,1711827032445,-4415.03,0.00038749,2]
[321051005,1711827032454,-175.65,0.00038893,2]
[321051006,1711827032463,-1000.0,0.00038987,2]
[321051007,1711827032472,-400.0,0.00039,3]
[321051008,1711827032482,-800.0,0.00039581,15]
[321051009,1711827032490,-500.0,0.00039581,20]
[321051010,1711827032500,-168.12455336,0.00039686,2]
[321051011,1711827032509,-5039.75835999,0.000397,2]
[321051012,1711827032527,-1537.62424001,0.000397,2]
[321051013,1711827032537,-464.2959329,0.000398,2]
[321051024,1711827032757,-545.42907485,0.000398,2]
[321051026,1711827032768,-287.71548721,0.0003989,2]
[321051028,1711827032778,-3037.36603661,0.00039892,2]
[321051031,1711827032803,-915.30329089,0.00039892,2]
[321051033,1711827032812,-152.40046199,0.00039897,2]
[321051035,1711827032821,-864.6745,0.00039898,4]
[321051037,1711827032830,-446.43690151,0.00039898,4]
[321051039,1711827032839,-1389.40047802,0.00039898,4]
[321051041,1711827032848,-155.0,0.00039899,4]
[321051043,1711827032859,-1652.62174025,0.00039899,2]
[321051045,1711827032868,-168.55484831,0.00039899,2]
[321051047,1711827032877,-473.0,0.000399,15]
[321051049,1711827032886,-993.60777903,0.000399,2]
[321051051,1711827032907,-277.92,0.000399,2]
[321051054,1711827032920,-400.16219829,0.000399,2]
[321051058,1711827032949,-383.89999996,0.000399,2]
[321051088,1711827037986,-168.55484831,0.00039899,2]
[321051089,1711827037995,-830.87615155,0.000399,2]
[321051090,1711827038007,-1995.61645,0.000399,2]
[321051091,1711827038092,-1087.28885078,0.000399,2]
[321051092,1711827038102,-187.18611,0.000399,2]
[321051093,1711827038111,-51722.48086418,0.000399,2]
[321051173,1711827040165,-419100.0,0.000399,2]
[321051174,1711827040176,-1799.94670493,0.000399,2]
[321051175,1711827040188,-1499.97141644,0.000399,2]
[321051176,1711827040229,-17458.75933449,0.000399,2]
[321051177,1711827040247,-1650.76793361,0.000399,2]
[321051178,1711827040348,-460.74799849,0.000399,2]
[321051182,1711827043121,-329.29832794,0.00039899,4]
[321051184,1711827043396,-205.86860361,0.00039899,4]
[321051185,1711827043405,-4297.05807523,0.000399,2]
[321051186,1711827043417,-2957.53247859,0.000399,2]
[321051187,1711827043429,-428.69002498,0.000399,2]
[321051188,1711827043441,-7947.84410234,0.000399,2]
[321051189,1711827045152,-626.13543577,0.00037676,2]
[321051193,1711827046405,-342.34435101,0.00037676,2]
[321051194,1711827046415,-143.48425419,0.00037871,2]
[321051195,1711827046443,-252.13285272,0.00037871,2]
[321051196,1711827046458,-144.92289309,0.00037871,2]